bitfinex/quotes_BTCUSD_20241102
["timestamp","ask_amount","ask_price","bid_price","bid_amount"]
[1730514698362,0.0153847,69928.0,69927.0,0.188144]
[1730514698648,0.0217577,69928.0,69927.0,0.188144]
[1730514699129,0.1361607,69928.0,69927.0,0.188144]
[1730514699595,0.20927181,69928.0,69927.0,0.188144]
[1730514700055,0.20927181,69928.0,69927.0,0.014644]
[1730514701601,0.19588711,69928.0,69927.0,0.014644]
[1730514701830,0.20926744,69928.0,69927.0,0.014644]
[1730514705373,0.20926824,69928.0,69927.0,0.014644]
[1730514705806,0.13615713,69928.0,69927.0,0.014644]
[1730514706017,0.122776,69928.0,69927.0,0.014644]
[1730514706868,0.127776,69928.0,69927.0,0.014644]
[1730514707117,0.1361571,69928.0,69927.0,0.014644]
[1730514707543,0.1411571,69928.0,69927.0,0.014644]
[1730514707751,0.1361571,69928.0,69927.0,0.014644]
[1730514707962,0.1411571,69928.0,69927.0,0.014644]
[1730514712018,0.1361571,69928.0,69927.0,0.014644]
[1730514712462,0.0217541,69928.0,69927.0,0.189744]
[1730514713803,0.1361571,69928.0,69927.0,0.189744]
[1730514714258,0.20854961,69928.0,69927.0,0.189744]
[1730514715169,0.22996443,69928.0,69927.0,0.189744]
[1730514716723,0.22996443,69928.0,69927.0,0.111244]
[1730514719917,0.15757192,69928.0,69927.0,0.111244]
[1730514721268,0.122776,69928.0,69927.0,0.111244]
[1730514721511,0.15761218,69928.0,69927.0,0.111244]
[1730514723356,0.13617453,69928.0,69927.0,0.111244]
[1730514727410,0.13618932,69928.0,69927.0,0.111244]
[1730514729168,0.22408224,69928.0,69927.0,0.111244]
[1730514729817,0.13618932,69928.0,69927.0,0.111244]
[1730514730691,0.122776,69928.0,69927.0,0.111244]
[1730514730921,0.02179325,69928.0,69927.0,0.304649]
[1730514731354,0.01542025,69928.0,69927.0,0.304649]
[1730514732247,0.01542025,69928.0,69927.0,0.190244]
[1730514732923,0.02183827,69928.0,69927.0,0.190244]
[1730514733413,0.10918966,69928.0,69927.0,0.190244]
[1730514733863,0.02183827,69928.0,69927.0,0.190244]
[1730514734302,0.00841802,69928.0,69927.0,0.190244]
[1730514734531,0.02182883,69928.0,69927.0,0.190244]
[1730514742684,0.0547463,69928.0,69927.0,0.190244]
[1730514742956,0.13623183,69928.0,69927.0,0.190244]
[1730514743177,0.13623183,69928.0,69927.0,0.111244]
[1730514743178,0.06470636,69928.0,69927.0,0.111244]
[1730514743461,0.22358322,69928.0,69927.0,0.111244]
[1730514745296,0.21017241,69928.0,69927.0,0.111244]
[1730514745526,0.31658218,69928.0,69927.0,0.014644]
[1730514745757,0.31658274,69928.0,69927.0,0.014644]
[1730514746614,0.38089903,69928.0,69927.0,0.014644]
[1730514746832,0.31658274,69928.0,69927.0,0.014644]
[1730514747262,0.38089903,69928.0,69927.0,0.014644]
[1730514747470,0.22357968,69928.0,69927.0,0.014644]
[1730514747688,0.28789597,69928.0,69927.0,0.014644]
[1730514749015,0.30933474,69928.0,69927.0,0.014644]
[1730514749234,0.46772358,69928.0,69927.0,0.014644]
[1730514750875,0.38196852,69928.0,69927.0,0.014644]
[1730514751561,0.40342162,69928.0,69927.0,0.014644]
[1730514752031,0.48917668,69928.0,69927.0,0.014644]
[1730514752269,0.48918261,69928.0,69927.0,0.014644]
[1730514752503,0.46772951,69928.0,69927.0,0.014644]
[1730514752954,0.4677306,69928.0,69927.0,0.014644]
[1730514753412,0.48918396,69928.0,69927.0,0.014644]
[1730514756333,0.48924697,69928.0,69927.0,0.014644]
[1730514757069,0.45438525,69928.0,69927.0,0.014644]
[1730514757303,0.48924679,69928.0,69927.0,0.014644]
[1730514757522,0.46779353,69928.0,69927.0,0.014644]
[1730514757970,0.35339053,69928.0,69927.0,0.014644]
[1730514758403,0.46779353,69928.0,69927.0,0.014644]
[1730514760395,0.45438525,69928.0,69927.0,0.014644]
[1730514760576,0.46779351,69928.0,69927.0,0.014644]
[1730514761007,0.46778998,69928.0,69927.0,0.014644]
[1730514761432,0.35338698,69928.0,69927.0,0.183844]
[1730514761602,0.46778998,69928.0,69927.0,0.183844]
[1730514762223,0.35338698,69928.0,69927.0,0.183844]
[1730514762424,0.46778998,69928.0,69927.0,0.183844]
[1730514763321,0.57155529,69928.0,69927.0,0.183844]
[1730514763516,0.57155529,69928.0,69927.0,0.105944]
[1730514764161,0.57155602,69928.0,69927.0,0.105944]
[1730514765381,0.57155087,69928.0,69927.0,0.105944]
[1730514766681,0.46778556,69928.0,69927.0,0.105944]
[1730514766921,0.45437657,69928.0,69927.0,0.105944]
[1730514767121,0.46778673,69928.0,69927.0,0.105944]
[1730514768402,0.45437657,69928.0,69927.0,0.105944]
[1730514768634,0.46778812,69928.0,69927.0,0.105944]
[1730514771886,0.46779166,69928.0,69927.0,0.105944]
[1730514772545,0.57155691,69928.0,69927.0,0.105944]
[1730514775365,0.45715391,69928.0,69927.0,0.105944]
[1730514775590,0.44373882,69928.0,69927.0,0.105944]
[1730514775798,0.10918794,69928.0,69927.0,0.105944]
[1730514776229,0.35339136,69928.0,69927.0,0.105944]
[1730514779255,0.35341552,69928.0,69927.0,0.105944]
[1730514779494,0.33999699,69928.0,69927.0,0.105944]
[1730514779724,0.35341848,69928.0,69927.0,0.105944]
[1730514779950,0.57159044,69928.0,69927.0,0.014644]
[1730514780408,0.59304626,69928.0,69927.0,0.014644]
[1730514780625,0.64187102,69928.0,69927.0,0.014644]
[1730514780862,0.69360366,69928.0,69927.0,0.014644]
[1730514781517,0.224421,69917.0,69916.0,0.001642]
[1730514781780,0.76050928,69917.0,69916.0,0.001642]
[1730514781990,0.66815789,69917.0,69916.0,0.001642]
[1730514782207,0.62345192,69917.0,69916.0,0.001642]
[1730514782651,0.64490004,69917.0,69916.0,0.001642]
[1730514782878,0.748669,69917.0,69916.0,0.001642]
[1730514783070,0.74863867,69917.0,69916.0,0.003642]
[1730514783279,0.8558477,69917.0,69916.0,0.003642]
[1730514783520,0.8578477,69917.0,69916.0,0.001642]
[1730514783954,0.8558477,69917.0,69916.0,0.003642]
[1730514784163,0.8558477,69917.0,69916.0,0.005642]
[1730514784371,0.74863867,69917.0,69916.0,0.005642]
[1730514784996,0.83438535,69917.0,69916.0,0.005642]
[1730514785444,0.74863867,69917.0,69916.0,0.005642]
[1730514785666,0.83438535,69917.0,69916.0,0.005642]
[1730514785883,0.74863867,69917.0,69916.0,0.005642]
[1730514786090,0.59022059,69917.0,69916.0,0.005642]
[1730514786303,0.65450972,69917.0,69916.0,0.005642]
[1730514787412,0.55538131,69917.0,69916.0,0.005642]
[1730514787630,0.59018874,69917.0,69916.0,0.005642]
[1730514788736,0.65447787,69917.0,69916.0,0.005642]
[1730514789178,0.59018572,69917.0,69916.0,0.005642]
[1730514789393,0.59018236,69917.0,69916.0,0.005642]
[1730514790482,0.63302747,69917.0,69916.0,0.005642]
[1730514790663,0.59018236,69917.0,69916.0,0.005642]
[1730514791333,0.63302416,69917.0,69916.0,0.005642]
[1730514791547,0.59018236,69917.0,69916.0,0.005642]
[1730514793070,0.6447327,69917.0,69916.0,0.005642]
[1730514793265,0.6795279,69917.0,69916.0,0.005642]
[1730514793488,0.74379493,69917.0,69916.0,0.005642]
[1730514793951,0.6795279,69917.0,69916.0,0.005642]
[1730514794395,0.74378027,69917.0,69916.0,0.005642]
[1730514795644,0.74377512,69917.0,69916.0,0.005642]
[1730514796179,0.74177512,69917.0,69916.0,0.005642]
[1730514796393,0.74377204,69917.0,69916.0,0.005642]
[1730514796603,0.74877204,69917.0,69916.0,0.005642]
[1730514797788,0.9282769,69917.0,69916.0,0.005642]
[1730514798039,0.84261394,69917.0,69916.0,0.005642]
[1730514798239,0.88722498,69917.0,69916.0,0.005642]
[1730514798678,0.91022498,69917.0,69916.0,0.005642]
[1730514798894,0.75213586,69917.0,69916.0,0.003642]
[1730514799130,0.75413586,69917.0,69916.0,0.003642]
[1730514799347,0.84148725,69917.0,69916.0,0.003642]
[1730514799554,0.84148725,69917.0,69916.0,0.001642]
[1730514799555,0.92773586,69917.0,69916.0,0.001642]
[1730514799775,0.92573586,69917.0,69916.0,0.001642]
[1730514800222,0.92973586,69917.0,69916.0,0.001642]
[1730514800438,1.21634143,69917.0,69916.0,0.001642]
[1730514800886,0.92973586,69917.0,69916.0,0.001642]
[1730514802902,0.92335115,69917.0,69916.0,0.001642]
[1730514803324,0.92333722,69917.0,69916.0,0.001642]
[1730514803540,0.92772861,69917.0,69916.0,0.001642]
[1730514803780,0.89295042,69917.0,69916.0,0.001642]
[1730514804001,0.92772862,69917.0,69916.0,0.001642]
[1730514804866,1.01508001,69917.0,69916.0,0.001642]
[1730514805083,0.92772862,69917.0,69916.0,0.001642]
[1730514805310,1.08578699,69917.0,69916.0,0.001642]
[1730514805996,1.08579102,69917.0,69916.0,0.001642]
[1730514806222,1.17314241,69917.0,69916.0,0.001642]
[1730514807108,1.13836018,69917.0,69916.0,0.001642]
[1730514807336,1.17314735,69917.0,69916.0,0.001642]
[1730514807584,1.08579596,69917.0,69916.0,0.001642]
[1730514808253,0.012,69907.0,69906.0,0.21707513]
[1730514808469,0.48703081,69907.0,69906.0,0.21707513]
[1730514808686,0.5103062,69907.0,69906.0,0.21707513]
[1730514808902,0.119449,69900.0,69899.0,0.21707513]
[1730514809120,0.24158756,69900.0,69899.0,0.21707513]
[1730514809349,0.11945,69899.0,69898.0,0.0953]
[1730514809640,0.15423717,69899.0,69898.0,0.0953]
[1730514809863,0.25332808,69899.0,69898.0,0.0953]
[1730514810592,0.25335468,69899.0,69898.0,0.0953]
[1730514811034,0.25435468,69899.0,69898.0,0.1023]
[1730514811928,0.25535468,69899.0,69898.0,0.1163]
[1730514814203,0.2553535,69899.0,69898.0,0.1163]
[1730514814674,0.25535333,69899.0,69898.0,0.1163]
[1730514814897,0.04307607,69899.0,69898.0,0.312852]
[1730514815137,0.03681242,69899.0,69898.0,0.307852]
[1730514815817,0.01538939,69899.0,69898.0,0.307852]
[1730514817846,0.01539016,69899.0,69898.0,0.307852]
[1730514818996,0.01539016,69899.0,69898.0,0.309496]
[1730514820113,0.01539016,69899.0,69898.0,0.44795125]
[1730514820319,0.21707513,69913.0,69898.0,0.44795125]
[1730514820320,0.02142778,69906.0,69905.0,0.114441]
[1730514820530,0.02142778,69906.0,69905.0,0.292841]
[1730514820531,0.01339283,69906.0,69905.0,0.292841]
[1730514820736,0.01339283,69906.0,69905.0,0.43129625]
[1730514820956,0.02142568,69919.0,69918.0,0.292819]
[1730514821186,0.03481671,69919.0,69918.0,0.292819]
[1730514822295,0.03481671,69919.0,69918.0,0.297819]
[1730514822932,0.03481671,69919.0,69918.0,0.302819]
[1730514823146,0.01339103,69919.0,69918.0,0.302819]
[1730514823782,0.03481671,69919.0,69918.0,0.302819]
[1730514823991,0.01339103,69919.0,69918.0,0.302819]
[1730514824438,0.01339103,69919.0,69918.0,0.1884]
[1730514824934,0.02142568,69922.0,69918.0,0.1884]
[1730514824935,0.114413,69922.0,69918.0,0.302819]
[1730514825140,0.01337724,69919.0,69918.0,0.302819]
[1730514825350,0.01337431,69919.0,69918.0,0.302819]
[1730514825562,0.12779231,69919.0,69918.0,0.1884]
[1730514825775,0.21794054,69919.0,69918.0,0.1784]
[1730514826261,0.21794054,69919.0,69918.0,0.1804]
[1730514826454,0.21794054,69919.0,69918.0,0.1784]
[1730514826657,0.21794054,69919.0,69918.0,0.1834]
[1730514827091,0.21793953,69919.0,69918.0,0.1834]
[1730514827297,0.21793953,69919.0,69918.0,0.1844]
[1730514827767,0.20456623,69919.0,69918.0,0.1834]
[1730514828139,0.20456623,69919.0,69918.0,0.1874]
[1730514829306,0.18316264,69919.0,69918.0,0.1874]
[1730514830818,0.18398464,69919.0,69918.0,0.1874]
[1730514831042,0.2053748,69919.0,69918.0,0.1874]
[1730514831276,0.2053748,69919.0,69918.0,0.1048]
[1730514831498,0.2053748,69919.0,69918.0,0.009]
[1730514831966,0.2053748,69919.0,69918.0,0.301819]
[1730514831967,0.02221216,69919.0,69918.0,0.301819]
[1730514832201,0.000822,69919.0,69918.0,0.301819]
[1730514832445,0.01418751,69919.0,69918.0,0.301819]
[1730514832949,0.02755311,69919.0,69918.0,0.301819]
[1730514834248,0.01418751,69919.0,69918.0,0.301819]
[1730514837281,0.03848826,69919.0,69918.0,0.1874]
[1730514837472,0.05821335,69919.0,69918.0,0.1874]
[1730514837681,0.19402151,69919.0,69918.0,0.1874]
[1730514837896,0.25998274,69919.0,69918.0,0.009]
[1730514838106,0.16972076,69919.0,69918.0,0.009]
[1730514838316,0.1483306,69919.0,69918.0,0.009]
[1730514840299,0.16972076,69919.0,69918.0,0.009]
[1730514840486,0.0339126,69919.0,69918.0,0.009]
[1730514841419,0.0339126,69919.0,69918.0,0.219219]
[1730514841649,0.03392703,69919.0,69918.0,0.1874]
[1730514841863,0.02756517,69919.0,69918.0,0.301819]
[1730514842101,0.03392955,69919.0,69918.0,0.301819]
[1730514842320,0.03392955,69919.0,69918.0,0.1874]
[1730514842759,0.04462981,69919.0,69918.0,0.1874]
[1730514843469,0.06602413,69919.0,69918.0,0.1874]
[1730514843680,0.04462981,69919.0,69918.0,0.1874]
[1730514844142,0.06602413,69919.0,69918.0,0.1874]
[1730514845092,0.05269858,69919.0,69918.0,0.1874]
[1730514845352,0.06608452,69919.0,69918.0,0.1874]
[1730514847404,0.06609467,69919.0,69918.0,0.1874]
[1730514848537,0.0553899,69919.0,69918.0,0.1874]
[1730514848771,0.06610995,69919.0,69918.0,0.1874]
[1730514850299,0.06610995,69919.0,69918.0,0.301819]
[1730514850516,0.05974557,69919.0,69918.0,0.301819]
[1730514852072,0.04642413,69919.0,69918.0,0.301819]
[1730514852300,0.05983645,69919.0,69918.0,0.301819]
[1730514852525,0.04642352,69919.0,69918.0,0.301819]
[1730514852738,0.05983573,69919.0,69918.0,0.301819]
[1730514852987,0.07056557,69919.0,69918.0,0.1048]
[1730514853209,0.19135764,69919.0,69918.0,0.1048]
[1730514853642,0.26499314,69919.0,69918.0,0.009]
[1730514853856,0.25426337,69919.0,69918.0,0.009]
[1730514854071,0.24085116,69919.0,69918.0,0.009]
[1730514855155,0.18062843,69919.0,69918.0,0.009]
[1730514857174,0.16721566,69919.0,69918.0,0.009]
[1730514857819,0.05279766,69919.0,69918.0,0.009]
[1730514859143,0.16721566,69919.0,69918.0,0.009]
[1730514859406,0.16084274,69919.0,69918.0,0.009]
[1730514859617,0.16721278,69919.0,69918.0,0.009]
[1730514863047,0.16722606,69919.0,69918.0,0.009]
[1730514865396,0.21011169,69919.0,69918.0,0.009]
[1730514866450,0.16722606,69919.0,69918.0,0.009]
[1730514866654,0.02866087,69919.0,69918.0,0.009]
[1730514866869,0.0528133,69919.0,69918.0,0.009]
[1730514867101,0.23256791,69919.0,69918.0,0.009]
[1730514867321,0.29689636,69919.0,69918.0,0.009]
[1730514868169,0.3039444,69919.0,69918.0,0.009]
[1730514869042,0.23860779,69919.0,69918.0,0.009]
[1730514870164,0.19298653,69919.0,69918.0,0.009]
[1730514870384,0.23861225,69919.0,69918.0,0.009]
[1730514871539,0.1742838,69919.0,69918.0,0.009]
[1730514871962,0.33273922,69919.0,69918.0,0.009]
[1730514873699,0.32200243,69919.0,69918.0,0.009]
[1730514873916,0.33273732,69919.0,69918.0,0.009]
[1730514874129,0.28711403,69919.0,69918.0,0.009]
[1730514874341,0.32200243,69919.0,69918.0,0.009]
[1730514874768,0.33273732,69919.0,69918.0,0.009]
[1730514875414,0.41850859,69919.0,69918.0,0.009]
[1730514875839,0.41850694,69919.0,69918.0,0.009]
[1730514876490,0.50585833,69919.0,69918.0,0.009]
[1730514876703,0.41850694,69919.0,69918.0,0.009]
[1730514877132,0.40508833,69919.0,69918.0,0.009]
[1730514877570,0.29067033,69919.0,69918.0,0.1011]
[1730514877574,0.41150971,69919.0,69918.0,0.1011]
[1730514877787,0.17427848,69919.0,69918.0,0.1011]
[1730514877999,0.23867448,69919.0,69918.0,0.1011]
[1730514878223,0.23867359,69919.0,69918.0,0.1011]
[1730514879134,0.2279387,69919.0,69918.0,0.1011]
[1730514882716,0.22794674,69919.0,69918.0,0.1011]
[1730514883570,0.20647797,69919.0,69918.0,0.1011]
[1730514885125,0.20647965,69919.0,69918.0,0.1011]
[1730514887298,0.20648303,69919.0,69918.0,0.1011]
[1730514888194,0.20648362,69919.0,69918.0,0.1011]
[1730514889718,0.20648375,69919.0,69918.0,0.1011]
[1730514891066,0.20648375,69919.0,69918.0,0.009]
[1730514891067,0.14207722,69919.0,69918.0,0.009]
[1730514891292,0.38645551,69919.0,69918.0,0.009]
[1730514891982,0.38645644,69919.0,69918.0,0.009]
[1730514892622,0.49033729,69919.0,69918.0,0.009]
[1730514893082,0.38645644,69919.0,69918.0,0.009]
[1730514893299,0.30057995,69919.0,69918.0,0.009]
[1730514895489,0.27374251,69919.0,69918.0,0.009]
[1730514895734,0.30057925,69919.0,69918.0,0.009]
[1730514896173,0.38645143,69919.0,69918.0,0.009]
[1730514896634,0.40445959,69919.0,69918.0,0.009]
[1730514898701,0.40445959,69919.0,69918.0,0.005]
[1730514898917,0.40445959,69919.0,69918.0,0.008]
[1730514899347,0.40445919,69919.0,69918.0,0.008]
[1730514899824,0.30057885,69919.0,69918.0,0.008]
[1730514900039,0.30057885,69919.0,69918.0,0.003]
[1730514900488,0.38645693,69919.0,69918.0,0.007]
[1730514902278,0.37303856,69919.0,69918.0,0.007]
[1730514904116,0.37303856,69919.0,69918.0,0.003]
[1730514904338,0.114422,69917.0,69914.0,0.0948]
[1730514904548,0.04293908,69915.0,69914.0,0.0948]
[1730514904768,0.05635705,69915.0,69914.0,0.0948]
[1730514905450,0.05635682,69915.0,69914.0,0.0948]
[1730514905689,0.05635682,69915.0,69914.0,0.0988]
[1730514906206,0.07460043,69915.0,69914.0,0.0948]
[1730514906640,0.07460052,69915.0,69914.0,0.0998]
[1730514906858,0.07460052,69915.0,69914.0,0.0948]
[1730514907072,0.07560052,69915.0,69914.0,0.1018]
[1730514907542,0.07560052,69915.0,69914.0,0.1078]
[1730514908024,0.17178091,69915.0,69914.0,0.1078]
[1730514908945,0.05735691,69915.0,69914.0,0.1078]
[1730514909169,0.17178126,69915.0,69914.0,0.1078]
[1730514912492,0.17178126,69915.0,69914.0,0.013]
[1730514913150,0.17178238,69915.0,69914.0,0.013]
[1730514913880,0.05735838,69915.0,69914.0,0.013]
[1730514914099,0.17178238,69915.0,69914.0,0.013]
[1730514917099,0.17178326,69915.0,69914.0,0.013]
[1730514917538,0.17178359,69915.0,69914.0,0.013]
[1730514918826,0.12884416,69915.0,69914.0,0.013]
[1730514920983,0.128846,69915.0,69914.0,0.013]
[1730514929321,0.12884051,69915.0,69914.0,0.013]
[1730514931396,0.21469482,69915.0,69914.0,0.013]
[1730514931645,0.38433987,69915.0,69914.0,0.013]
[1730514931853,0.29848557,69915.0,69914.0,0.013]
[1730514932062,0.29930757,69915.0,69914.0,0.013]
[1730514934234,0.14084602,69915.0,69914.0,0.013]
[1730514935929,0.2992964,69915.0,69914.0,0.013]
[1730514936147,0.29929324,69915.0,69914.0,0.013]
[1730514936353,0.29929008,69915.0,69914.0,0.013]
[1730514937456,0.30429008,69915.0,69914.0,0.013]
[1730514937664,0.5520535,69915.0,69914.0,0.013]
[1730514937876,0.7223535,69915.0,69914.0,0.013]
[1730514938750,0.45459811,69915.0,69914.0,0.013]
[1730514938967,0.72032178,69915.0,69914.0,0.013]
[1730514939193,0.71302642,69915.0,69914.0,0.013]
[1730514939643,0.75772887,69915.0,69914.0,0.013]
[1730514939857,0.8864833,69915.0,69914.0,0.013]
[1730514940066,0.8884833,69915.0,69914.0,0.013]
[1730514940286,0.76472887,69915.0,69914.0,0.013]
[1730514940951,0.76470007,69915.0,69914.0,0.013]
[1730514941167,0.76470007,69915.0,69914.0,0.007]
[1730514941376,0.78770007,69915.0,69914.0,0.007]
[1730514941815,0.78870007,69915.0,69914.0,0.007]
[1730514942053,0.114447,69901.0,69899.0,0.001644]
[1730514942276,0.33870136,69901.0,69899.0,0.001644]
[1730514942504,0.34592396,69901.0,69899.0,0.001644]
[1730514942722,0.114449,69900.0,69899.0,0.001644]
[1730514942930,0.12786235,69900.0,69899.0,0.001644]
[1730514943177,0.1799603,69900.0,69899.0,0.001644]
[1730514943428,0.17994231,69900.0,69899.0,0.001644]
[1730514945216,0.17994231,69900.0,69899.0,0.009644]
[1730514945914,0.18094231,69900.0,69899.0,0.018644]
[1730514946787,0.16754695,69900.0,69899.0,0.018644]
[1730514947005,0.18093128,69900.0,69899.0,0.018644]
[1730514950031,0.1809275,69900.0,69899.0,0.018644]
[1730514950911,0.16754695,69900.0,69899.0,0.018644]
[1730514951151,0.1809269,69900.0,69899.0,0.018644]
[1730514955632,0.1817489,69900.0,69899.0,0.018644]
[1730514958639,0.1867489,69900.0,69899.0,0.018644]
[1730514958868,0.32520415,69900.0,69899.0,0.018644]
[1730514960862,0.32520998,69900.0,69899.0,0.018644]
[1730514961343,0.3118242,69900.0,69899.0,0.018644]
[1730514961568,0.3252113,69900.0,69899.0,0.018644]
[1730514963277,0.4272113,69900.0,69899.0,0.018644]
[1730514963499,0.5217113,69900.0,69899.0,0.018644]
[1730514963713,0.6045113,69900.0,69899.0,0.018644]
[1730514964155,0.6025113,69900.0,69899.0,0.018644]
[1730514964376,0.6025113,69900.0,69899.0,0.118044]
[1730514964377,0.24158408,69900.0,69899.0,0.118044]
[1730514964628,0.14158408,69900.0,69899.0,0.118044]
[1730514964872,0.02713508,69900.0,69899.0,0.200644]
[1730514965323,0.02713508,69900.0,69899.0,0.315094]
[1730514965990,0.0152091,69900.0,69899.0,0.315094]
[1730514967552,0.001822,69900.0,69899.0,0.307094]
[1730514967854,0.001822,69900.0,69899.0,0.319094]
[1730514968086,0.000822,69900.0,69899.0,0.310094]
[1730514968523,0.000822,69900.0,69899.0,0.322094]
[1730514968750,0.000822,69900.0,69899.0,0.310094]
[1730514969187,0.01422083,69900.0,69899.0,0.310094]
[1730514969399,0.01422083,69900.0,69899.0,0.298094]
[1730514969613,0.01422083,69900.0,69899.0,0.312094]
[1730514969825,0.01422083,69900.0,69899.0,0.326094]
[1730514970943,0.01421919,69900.0,69899.0,0.326094]
[1730514971165,0.000822,69900.0,69899.0,0.326094]
[1730514971384,0.01421918,69900.0,69899.0,0.326094]
[1730514972513,0.01421721,69900.0,69899.0,0.326094]
[1730514973241,0.01421721,69900.0,69899.0,0.211644]
[1730514973682,0.02611276,69900.0,69899.0,0.211644]
[1730514974602,0.02611301,69900.0,69899.0,0.211644]
[1730514975747,0.02611301,69900.0,69899.0,0.326094]
[1730514975952,0.01893148,69900.0,69899.0,0.326094]
[1730514976166,0.01421746,69900.0,69899.0,0.326094]
[1730514977935,0.0142171,69900.0,69899.0,0.326094]
[1730514981702,0.02611265,69900.0,69899.0,0.326094]
[1730514982812,0.0142171,69900.0,69899.0,0.326094]
[1730514984108,0.02611265,69900.0,69899.0,0.326094]
[1730514984544,0.0142171,69900.0,69899.0,0.326094]
[1730514984750,0.02611265,69900.0,69899.0,0.326094]
[1730514984988,0.0142171,69900.0,69899.0,0.326094]
[1730514985203,0.02611265,69900.0,69899.0,0.326094]
[1730514987954,0.0142171,69900.0,69899.0,0.326094]
[1730514988162,0.02610777,69900.0,69899.0,0.326094]
[1730514988844,0.02610974,69900.0,69899.0,0.326094]
[1730514989078,0.02610974,69900.0,69899.0,0.46454925]
[1730514989079,0.01271267,69900.0,69899.0,0.46454925]
[1730514989283,0.000822,69900.0,69899.0,0.46454925]
[1730514989959,0.000822,69900.0,69899.0,0.45054925]
[1730514990813,0.000822,69900.0,69899.0,0.43654925]
[1730514991084,0.000822,69900.0,69899.0,0.312094]
[1730514992377,0.000822,69900.0,69899.0,0.326094]
[1730515012892,0.000822,69900.0,69899.0,0.33056529]
[1730515018805,0.000822,69900.0,69899.0,0.326094]
[1730515021702,0.01424591,69900.0,69899.0,0.326094]
[1730515025600,0.000822,69900.0,69899.0,0.326094]
[1730515025811,0.0142459,69900.0,69899.0,0.326094]
[1730515029142,0.01424593,69900.0,69899.0,0.326094]
[1730515030885,0.01424593,69900.0,69899.0,0.46454925]
[1730515032721,0.01424593,69900.0,69899.0,0.46954925]
[1730515033003,0.000822,69900.0,69899.0,0.47454925]
[1730515034767,0.000822,69900.0,69899.0,0.51717808]
[1730515035720,0.000822,69900.0,69899.0,0.50317808]
[1730515036209,0.000822,69900.0,69899.0,0.47454925]
[1730515036450,0.000822,69900.0,69899.0,0.46054925]
[1730515036674,0.000822,69900.0,69899.0,0.44654925]
[1730515036963,0.000822,69900.0,69899.0,0.47454925]
[1730515037195,0.000822,69900.0,69899.0,0.46054925]
[1730515037411,0.000822,69900.0,69899.0,0.47454925]
[1730515040348,0.000822,69900.0,69899.0,0.44654925]
[1730515040556,0.000822,69900.0,69899.0,0.46054925]
[1730515041420,0.000822,69900.0,69899.0,0.47454925]
[1730515041639,0.000822,69900.0,69899.0,0.48854925]
[1730515042340,0.000822,69900.0,69899.0,0.47454925]
[1730515042556,0.000822,69900.0,69899.0,0.48854925]
[1730515048798,0.000822,69900.0,69899.0,0.48354925]
[1730515049019,0.000822,69900.0,69899.0,0.48854925]
[1730515049963,0.000822,69900.0,69899.0,0.158094]
[1730515050175,0.01424077,69900.0,69899.0,0.158094]
[1730515050842,0.000822,69900.0,69899.0,0.158094]
[1730515051078,0.01424025,69900.0,69899.0,0.158094]
[1730515054578,0.000822,69900.0,69899.0,0.158094]
[1730515055009,0.01423722,69900.0,69899.0,0.158094]
[1730515055231,0.01423722,69900.0,69899.0,0.043644]
[1730515055661,0.02658992,69900.0,69899.0,0.043644]
[1730515056320,0.02658992,69900.0,69899.0,0.015644]
[1730515056528,0.01423722,69900.0,69899.0,0.015644]
[1730515056741,0.02658992,69900.0,69899.0,0.029644]
[1730515056963,0.02658992,69900.0,69899.0,0.015644]
[1730515057215,0.02658992,69900.0,69899.0,0.029644]
[1730515058356,0.0131747,69900.0,69899.0,0.029644]
[1730515058570,0.02658586,69900.0,69899.0,0.029644]
[1730515059646,0.55264427,69900.0,69899.0,0.029644]
[1730515059888,0.38994275,69900.0,69899.0,0.029644]
[1730515060098,0.34701775,69900.0,69899.0,0.029644]
[1730515061017,0.41138084,69900.0,69899.0,0.029644]
[1730515061237,0.41135919,69900.0,69899.0,0.029644]
[1730515062321,0.34701775,69900.0,69899.0,0.029644]
[1730515063367,0.38988868,69900.0,69899.0,0.029644]
[1730515064286,0.52834393,69900.0,69899.0,0.029644]
[1730515064512,0.485473,69900.0,69899.0,0.029644]
[1730515064735,0.54981444,69900.0,69899.0,0.029644]
[1730515065014,0.64369703,69900.0,69899.0,0.029644]
[1730515065247,0.77869703,69900.0,69899.0,0.015644]
[1730515065482,0.77869703,69900.0,69899.0,0.014644]
[1730515065933,0.77869703,69900.0,69899.0,0.021644]
[1730515066603,0.77869703,69900.0,69899.0,0.023644]
[1730515066830,0.77869703,69900.0,69899.0,0.001644]
[1730515067049,0.77969703,69900.0,69899.0,0.006644]
[1730515067532,0.77969703,69900.0,69899.0,0.001644]
[1730515067953,0.88775555,69900.0,69899.0,0.001644]
[1730515068398,0.88675555,69900.0,69899.0,0.001644]
[1730515068605,0.77869703,69900.0,69899.0,0.001644]
[1730515068842,0.78069703,69900.0,69899.0,0.001644]
[1730515069047,0.78269703,69900.0,69899.0,0.001644]
[1730515069264,0.78069703,69900.0,69899.0,0.001644]
[1730515069490,0.78265525,69900.0,69899.0,0.001644]
[1730515069927,0.78065525,69900.0,69899.0,0.001644]
[1730515070180,0.78265525,69900.0,69899.0,0.001644]
[1730515070405,0.88562274,69900.0,69899.0,0.001644]
[1730515070858,0.88762274,69900.0,69899.0,0.001644]
[1730515071300,0.77865525,69900.0,69899.0,0.001644]
[1730515071748,0.78065525,69900.0,69899.0,0.002644]
[1730515072185,0.86618971,69900.0,69899.0,0.002644]
[1730515072406,0.86818971,69900.0,69899.0,0.003644]
[1730515072846,0.86818971,69900.0,69899.0,0.002644]
[1730515073027,0.87018971,69900.0,69899.0,0.003644]
[1730515073968,0.78265525,69900.0,69899.0,0.003644]
[1730515074191,0.62443122,69900.0,69899.0,0.003644]
[1730515075306,0.68854963,69900.0,69899.0,0.003644]
[1730515076693,0.68853967,69900.0,69899.0,0.003644]
[1730515077380,0.62442126,69900.0,69899.0,0.003644]
[1730515078900,0.62642126,69900.0,69899.0,0.003644]
[1730515079786,0.66715009,69900.0,69899.0,0.003644]
[1730515080204,0.66714981,69900.0,69899.0,0.003644]
[1730515080691,0.66714982,69900.0,69899.0,0.003644]